[Event "FIDE WCCC G12 2018"]
[Site "Santiago de Compostela"]
[Date "2018.11.09"]
[Round "5"]
[White "Enkhsaran, Batsaikhan"]
[Black "Sevcikova, Lucia"]
[Result "1-0"]
[ECO "D03"]
[WhiteElo "1614"]
[BlackElo "1768"]
[Annotator "NA RC"]
[PlyCount "89"]
[EventDate "2018.11.04"]
[EventType "swiss"]
[EventCountry "ESP"]
[SourceTitle "playchess.com"]
[Source "ChessBase"]
[SourceQuality "1"]
[TimeControl "40/5400+30:1800+30"]

1. d4 {[%emt 0:00:00]} d5 {[%emt 0:00:00]} 2. Nf3 {[%emt 0:00:00]} Nf6 {[%emt 0:00:00]} 3. Bg5 {[%emt 0:00:04]} e6 {[%emt 0:02:00]} 4. e3 {[%emt 0:00:11]} Be7 {[%emt 0:01:03]} 5. Bd3 {[%emt 0:00:12]} O-O {[%emt 0:00:51]} 6. Nbd2 {[%emt 0:00:11]} Nbd7 {[%emt 0:01:23]} 7. O-O {[%emt 0:00:14]} c5 {[%emt 0:01:55]} 8. c3 {[%emt 0:00:07]} b6 {[%emt 0:04:01]} 9. Ne5 {[%emt 0:01:14]} Nxe5 {[%emt 0:04:51]} 10. dxe5 {[%emt 0:00:20]} Nd7 {[%emt 0:00:41]} 11. Bxe7 {[%emt 0:00:28]} Qxe7 {[%emt 0:00:04]} 12. f4 {[%emt 0:00:22]} f6 {[%emt 0:04:59]} 13. exf6 {[%emt 0:00:53]} Nxf6 {[%emt 0:00:39]} 14. Nf3 {[%emt 0:01:50]} Bb7 {[%emt 0:06:12]} 15. Qe1 {[%emt 0:08:47]} Ne4 {[%emt 0:05:00]} 16. Ne5 {[%emt 0:01:36]} Nd6 {[%emt 0:03:24]} 17. Rf3 {[%emt 0:04:00]} Nf5 {[%emt 0:02:27]} 18. Rh3 {[%emt 0:03:15]} Rf6 {[%emt 0:07:15]} 19. g4 {[%emt 0:07:05]} Rh6 {[%emt 0:03:00]} 20. Qf1 {[%emt 0:02:21]} Rxh3 {[%emt 0:05:21]} 21. Qxh3 {[%emt 0:00:16]} Nh6 {[%emt 0:01:14]} 22. Nf3 {[%emt 0:02:01]} d4 {[%emt 0:06:59]} 23. exd4 {[%emt 0:14:56]} Bxf3 {[%emt 0:01:54]} 24. Qxf3 {[%emt 0:00:55]} Rd8 {[%emt 0:00:53]} 25. Qe4 {[%emt 0:04:20]} g6 {[%emt 0:01:42]} 26. Bc4 {[%emt 0:02:23]} cxd4 {[%emt 0:03:27]} 27. cxd4 {[%emt 0:00:47]} Re8 {[%emt 0:04:23]} 28. h3 {[%emt 0:04:52]} Kf8 {[%emt 0:07:42]} 29. Re1 {[%emt 0:01:52]} Qb4 {[%emt 0:03:33]} 30. Bxe6 {[%emt 0:17:27]} Qxb2 {[%emt 0:00:54]} 31. d5 {[%emt 0:02:54]} Qc3 {[%emt 0:02:16]} 32. Kg2 {[%emt 0:00:56]} Nf7 {[%emt 0:02:27]} 33. Re3 {[%emt 0:04:09]} Qc5 {[%emt 0:02:25]} 34. Re2 {[%emt 0:06:22]} Qb5 {[%emt 0:01:18]} 35. a4 {[%emt 0:03:14]} Qc5 {[%emt 0:01:52]} 36. Rc2 {[%emt 0:00:58]} Qe7 {[%emt 0:01:11]} 37. Qd4 {[%emt 0:01:02]} Qd6 {[%emt 0:02:38]} 38. Rc6 {[%emt 0:04:43]} Qe7 {[%emt 0:00:35]} 39. Qc3 {[%emt 0:01:02]} Qh4 {[%emt 0:01:46]} 40. Rc7 {[%emt 0:00:00]} Re7 {[%emt 0:00:00]} 41. Rc8+ {[%emt 0:07:07]} Re8 {[%emt 0:00:31]} 42. Bxf7 {[%emt 0:02:29]} Kxf7 {[%emt 0:01:20]} 43. Rc7+ {[%emt 0:00:26]} Re7 {[%emt 0:00:12]} 44. d6 {[%emt 0:00:10]} Kg8 {[%emt 0:04:11]} 45. dxe7 {[%emt 0:00:20]} 1-0

[Event "FIDE WCCC G12 2018"]
[Site "Santiago de Compostela"]
[Date "2018.11.09"]
[Round "5"]
[White "Pang, Ashley"]
[Black "Vicze, Kata"]
[Result "1/2-1/2"]
[ECO "B21"]
[WhiteElo "1604"]
[BlackElo "1828"]
[Annotator "NA RC"]
[PlyCount "80"]
[EventDate "2018.11.04"]
[EventType "swiss"]
[EventCountry "ESP"]
[SourceTitle "playchess.com"]
[Source "ChessBase"]
[SourceQuality "1"]
[TimeControl "40/5400+30:1800+30"]

{[%evp 12,80,-17,32767,4,17,7,-24,0,-3,0,-4,0,-31,-22,-36,32767,-29,-37,-41,-51,-43,-41,-34,32767,32767,32767,32767,32767,32767,32767,32767,32767,-6,-22,32767,-7,32767,-66,-79,-65,-78,-66,-75,32767,32767,32767,32767,32767,32767,-94,-100,-115,-111,-93,-119,-81,-75,32767,-58,-36,32767,32767,-54,-52,32767,-53,-47,-43,-41,-36]} 1. e4 {[%emt 0:00:00]} c5 {[%emt 0:00:00]} 2. d4 {[%emt 0:00:00]} cxd4 {[%emt 0:00:04]} 3. c3 {[%emt 0:00:00]} dxc3 {[%emt 0:00:27]} 4. Nxc3 {[%emt 0:00:00]} Nc6 {[%emt 0:01:01]} 5. Nf3 {[%emt 0:00:13]} e6 {[%emt 0:05:40]} 6. Bc4 {[%emt 0:00:42]} Bb4 {[%emt 0:02:46] LiveBook: 15 Games} 7. O-O {[%emt 0:02:19]} Bxc3 {[%emt 0:04:08] B21: Sicilian: 2 f4 and Morra Gambit} (7... Nge7 8. Qe2 O-O 9. Rd1 d6 10. Rb1 h6 11. Bf4 Ng6 12. Bg3 e5 13. Qd3 Bxc3 14. bxc3 Na5 15. Bd5 Qe7 16. Nd2 {0-1 (55) Ohtake,S (2546)-Schueppel,R (2541) ICCF email 2007}) 8. bxc3 {[%emt 0:00:14]} Nge7 {[%emt 0:02:15]} 9. Nd4 $146 {[%emt 0:03:56]} ({Predecessor:} 9. Qd6 O-O 10. Rd1 a6 11. a4 Qa5 12. Bd2 Ng6 13. Be2 Qd8 14. Bg5 f6 15. Be3 Qe7 16. Qd2 f5 17. c4 f4 18. Bb6 Nh4 19. Nxh4 Qxh4 20. f3 Rf6 21. Bc7 {½-½ (21) Cappon,J (2216)-Vaarala,E (2274) Benidorm 2014}) 9... Nxd4 {[%emt 0:05:41]} 10. Qxd4 {[%emt 0:01:01]} O-O {[%emt 0:02:20]} 11. Ba3 {[%emt 0:05:40]} Nc6 {[%emt 0:04:31]} 12. Qc5 {[%emt 0:04:15]} Re8 {[%emt 0:02:07]} 13. f4 {[%emt 0:06:52]} Qe7 {[%emt 0:04:33]} 14. Rad1 {[%emt 0:09:30]} Qxc5+ {[%emt 0:03:42]} 15. Bxc5 {[%emt 0:00:15]} b6 {[%emt 0:00:16]} 16. Be3 {[%emt 0:04:50]} Re7 {[%emt 0:03:56]} 17. Bb5 {[%emt 0:03:25]} Bb7 {[%emt 0:03:37]} 18. Rd6 {[%emt 0:04:04]} Na5 {[%emt 0:05:28]} 19. e5 {[%emt 0:05:01]} Rc8 {[%emt 0:03:03]} 20. Bxd7 {[%emt 0:06:18]} Rxc3 {[%emt 0:05:05]} 21. Bf2 {[%emt 0:03:48]} Rc7 {[%emt 0:09:24]} 22. Bb5 {[%emt 0:03:08]} f6 {[%emt 0:02:34]} 23. Be1 {[%emt 0:10:08]} Rc2 {[%emt 0:05:04]} 24. Rd8+ {[%emt 0:03:32]} Kf7 {[%emt 0:00:29]} 25. Rf2 {[%emt 0:01:43]} Rc1 {[%emt 0:05:42]} 26. Rf1 {[%emt 0:02:42]} Nc6 {[%emt 0:04:37]} 27. Bxc6 {[%emt 0:06:04]} Bxc6 {[%emt 0:01:44]} 28. Bb4 {[%emt 0:04:54]} Rxf1+ {[%emt 0:00:43]} 29. Kxf1 {[%emt 0:00:07]} Bb5+ {[%emt 0:00:51]} 30. Kf2 {[%emt 0:00:51]} Rc7 {[%emt 0:00:55]} 31. g3 {[%emt 0:01:57]} a5 {[%emt 0:02:33]} 32. Be1 {[%emt 0:00:19]} fxe5 {[%emt 0:01:28]} 33. fxe5 {[%emt 0:01:18]} a4 {[%emt 0:00:48]} 34. Bb4 {[%emt 0:00:57]} Rc4 {[%emt 0:01:01]} 35. a3 {[%emt 0:00:43]} Rc6 {[%emt 0:03:54]} 36. Rd6 {[%emt 0:01:09]} Kg6 {[%emt 0:00:44]} 37. Rxc6 {[%emt 0:01:04]} Bxc6 {[%emt 0:00:03]} 38. g4 {[%emt 0:01:20]} h6 {[%emt 0:02:57]} 39. h4 b5 {[%emt 0:01:38]} 40. Kg3 {[%emt 0:00:00]} Bd5 $15 {[%emt 0:00:00]} 1/2-1/2

[Event "FIDE WCCC G12 2018"]
[Site "Santiago de Compostela"]
[Date "2018.11.09"]
[Round "5"]
[White "Voriskova, Anna"]
[Black "Butenandt, Svenja"]
[Result "0-1"]
[ECO "B84"]
[WhiteElo "1601"]
[BlackElo "1775"]
[Annotator "NA RC"]
[PlyCount "64"]
[EventDate "2018.11.04"]
[EventType "swiss"]
[EventCountry "ESP"]
[SourceTitle "playchess.com"]
[Source "ChessBase"]
[SourceQuality "1"]
[TimeControl "40/5400+30:1800+30"]

1. e4 {[%emt 0:00:00]} c5 {[%emt 0:00:00]} 2. Nf3 {[%emt 0:00:00]} e6 {[%emt 0:00:00]} 3. d4 {[%emt 0:00:00]} cxd4 {[%emt 0:00:00]} 4. Nxd4 {[%emt 0:00:00]} Nf6 {[%emt 0:00:04]} 5. Nc3 {[%emt 0:00:19]} d6 {[%emt 0:00:20]} 6. Be2 {[%emt 0:00:30]} a6 {[%emt 0:00:32]} 7. O-O {[%emt 0:00:15]} Be7 {[%emt 0:00:46]} 8. Kh1 {[%emt 0:00:56]} Qc7 {[%emt 0:01:06]} 9. f4 {[%emt 0:01:28]} b5 {[%emt 0:01:08]} 10. Bf3 {[%emt 0:07:41]} Bb7 {[%emt 0:07:14]} 11. Qe1 {[%emt 0:08:58]} O-O {[%emt 0:10:38]} 12. a4 {[%emt 0:07:46]} b4 {[%emt 0:06:34]} 13. Na2 {[%emt 0:06:32]} Qc4 {[%emt 0:20:17]} 14. Be3 {[%emt 0:08:41]} Bxe4 {[%emt 0:09:17]} 15. Bxe4 {[%emt 0:06:05]} Nxe4 {[%emt 0:02:18]} 16. Nxb4 {[%emt 0:05:50]} d5 {[%emt 0:02:29]} 17. Nd3 {[%emt 0:03:00]} Bf6 {[%emt 0:04:31]} 18. Qb4 {[%emt 0:03:33]} Bxd4 {[%emt 0:08:42]} 19. Bxd4 {[%emt 0:03:19]} Qxc2 {[%emt 0:00:52]} 20. Ne5 {[%emt 0:03:53]} Nc6 {[%emt 0:01:30]} 21. Nxc6 {[%emt 0:01:58]} Qxc6 {[%emt 0:00:05]} 22. Rac1 {[%emt 0:01:19]} Qd7 {[%emt 0:01:21]} 23. a5 {[%emt 0:04:30]} Rab8 {[%emt 0:02:37]} 24. Bb6 {[%emt 0:01:04]} Rfc8 {[%emt 0:01:50]} 25. Qd4 {[%emt 0:03:37]} Rxc1 {[%emt 0:02:46]} 26. Rxc1 {[%emt 0:00:06]} Rc8 {[%emt 0:00:45]} 27. Rd1 {[%emt 0:01:15]} Qc6 {[%emt 0:01:54]} 28. h3 {[%emt 0:06:10]} Qc2 {[%emt 0:03:02]} 29. Kh2 {[%emt 0:02:24]} h6 {[%emt 0:02:44]} 30. f5 {[%emt 0:01:36]} Rc4 {[%emt 0:01:41]} 31. Qg1 {[%emt 0:01:03]} Qxb2 {[%emt 0:00:41]} 32. fxe6 {[%emt 0:01:43]} Qe5+ {[%emt 0:00:47]} 0-1

[Event "FIDE WCCC G12 2018"]
[Site "Santiago de Compostela"]
[Date "2018.11.09"]
[Round "5"]
[White "Cai, Jinru"]
[Black "Ivorra Ivorra, Angela"]
[Result "1-0"]
[ECO "B50"]
[WhiteElo "1578"]
[BlackElo "1651"]
[Annotator "NA"]
[PlyCount "49"]
[EventDate "2018.11.04"]
[EventType "swiss"]
[EventCountry "ESP"]
[SourceTitle "playchess.com"]
[Source "ChessBase"]
[SourceQuality "1"]
[TimeControl "40/5400+30:1800+30"]

1. e4 {[%emt 0:00:00]} c5 {[%emt 0:00:00]} 2. Nf3 {[%emt 0:00:00]} d6 {[%emt 0:00:00]} 3. d4 {[%emt 0:00:00]} Nf6 {[%emt 0:00:00]} 4. dxc5 {[%emt 0:03:44]} Nxe4 {[%emt 0:01:43]} 5. cxd6 {[%emt 0:00:17]} Nc6 {[%emt 0:01:19]} 6. Bd3 {[%emt 0:01:49]} Nxd6 {[%emt 0:01:47]} 7. O-O {[%emt 0:01:05]} g6 {[%emt 0:02:02]} 8. Bd2 {[%emt 0:04:45]} Bg7 {[%emt 0:00:57]} 9. Bc3 {[%emt 0:00:43]} O-O {[%emt 0:03:17]} 10. Re1 {[%emt 0:02:03]} Re8 {[%emt 0:03:35]} 11. a3 {[%emt 0:06:44]} e5 {[%emt 0:06:29]} 12. Nbd2 {[%emt 0:05:26]} f5 {[%emt 0:09:08]} 13. Nc4 {[%emt 0:06:09]} Nxc4 {[%emt 0:04:35]} 14. Bxc4+ {[%emt 0:00:03]} Be6 {[%emt 0:00:26]} 15. Qe2 {[%emt 0:01:16]} e4 {[%emt 0:02:25]} 16. Bxe6+ {[%emt 0:01:37]} Rxe6 {[%emt 0:06:27]} 17. Qc4 {[%emt 0:00:21]} Qe7 {[%emt 0:02:33]} 18. Ng5 {[%emt 0:00:10]} Bxc3 {[%emt 0:00:36]} 19. bxc3 {[%emt 0:00:08]} Nd8 {[%emt 0:00:19]} 20. Nxe6 {[%emt 0:00:07]} Nxe6 {[%emt 0:00:03]} 21. Rab1 {[%emt 0:01:11]} b6 {[%emt 0:00:16]} 22. Rb5 {[%emt 0:00:39]} Kg7 {[%emt 0:02:03]} 23. Rd1 {[%emt 0:03:49]} Nc5 {[%emt 0:01:14]} 24. Qd4+ {[%emt 0:00:21]} Kg8 {[%emt 0:00:20]} 25. Qd5+ 1-0

[Event "FIDE WCCC G12 2018"]
[Site "Santiago de Compostela"]
[Date "2018.11.09"]
[Round "5"]
[White "Baalla, Nura"]
[Black "Van Foreest, Machteld"]
[Result "0-1"]
[ECO "B47"]
[WhiteElo "1565"]
[BlackElo "2003"]
[Annotator "NA RC"]
[PlyCount "116"]
[EventDate "2018.11.04"]
[EventType "swiss"]
[EventCountry "ESP"]
[SourceTitle "playchess.com"]
[Source "ChessBase"]
[SourceQuality "1"]
[TimeControl "40/5400+30:1800+30"]

{[%evp 10,116,34,47,32767,17,35,29,66,0,10,0,7,32767,-24,-38,0,32767,-2,32767,32767,32767,32767,32767,26,0,50,32767,7,23,32767,22,37,11,32767,32767,32767,32767,32767,32767,-13,-23,32767,-55,32767,32767,5,3,32767,0,4,0,13,0,12,32767,32767,0,18,32767,0,-50,-69,-73,-97,-62,-101,-87,-88,-80,-124,-178,-147,-287,-343,-316,-347,-725,-1018,-1186,-1321,-1770,-551,-812,-1207,-727,-2110,-1000,-2032,-12842,-12844,-29975,-29960,-29965,32767,-29951,-29984,-12847,32767,-29993,-29992,-29994,32767,32767,32767,32767,32767,-29996,-29997]} 1. e4 {[%emt 0:00:00]} c5 {[%emt 0:00:00]} 2. Nf3 {[%emt 0:00:00]} e6 {[%emt 0:00:00]} 3. d4 {[%emt 0:00:00]} cxd4 {[%emt 0:00:00]} 4. Nxd4 {[%emt 0:00:00]} Nc6 {[%emt 0:00:00]} 5. Nc3 {[%emt 0:00:00]} Qc7 {[%emt 0:00:00]} 6. f4 {[%emt 0:00:00] LiveBook: 1351 Games} Be7 $146 {[%emt 0:08:51] B47: Sicilian: Taimanov: 5 Nc3 Qc7 6 f4, 6 g3 and 6 Be2} ({Predecessor:} 6... a6 7. a3 b5 8. Be3 Bb7 9. Nb3 Na5 10. Nxa5 Qxa5 11. Bd3 Qc7 12. O-O Nf6 13. Qe2 Bc5 14. Bxc5 Qxc5+ 15. Kh1 d5 16. e5 {½-½ (41) Nakamura,H (2780)-Harikrishna,P (2738) Palma de Mallorca 2017}) 7. e5 {[%emt 0:23:59]} Nxd4 {[%emt 0:04:22]} 8. Qxd4 {[%emt 0:00:09]} a6 {[%emt 0:08:29]} 9. Bd3 {[%emt 0:07:07]} (9. Be3 $14) 9... Bc5 {[%emt 0:05:03]} 10. Qe4 {[%emt 0:03:34]} d5 {[%emt 0:03:21]} 11. Qf3 {[%emt 0:01:44]} Ne7 {[%emt 0:06:21]} 12. Bd2 {[%emt 0:03:05]} b5 {[%emt 0:04:26]} 13. g4 {[%emt 0:04:23]} Bb7 {[%emt 0:03:18]} 14. Rf1 {[%emt 0:03:24]} Rc8 {[%emt 0:05:23]} 15. Qg3 {[%emt 0:05:03]} Nc6 {[%emt 0:02:31]} 16. O-O-O {[%emt 0:13:05]} Nb4 {[%emt 0:14:11]} 17. Kb1 {[%emt 0:09:51]} Be7 {[%emt 0:10:33]} 18. f5 {[%emt 0:03:41]} Nxd3 {[%emt 0:04:24]} 19. Qxd3 {[%emt 0:02:24]} d4 {[%emt 0:03:58]} 20. Ne2 {[%emt 0:04:13]} ({Don't play} 20. Qxd4 b4 $15) 20... Qxe5 {[%emt 0:00:46]} 21. Bf4 {[%emt 0:10:09]} Qd5 {[%emt 0:03:50]} 22. Qxd4 {[%emt 0:01:21]} O-O {[%emt 0:01:54]} 23. Qxd5 {[%emt 0:00:50]} exd5 {[%emt 0:01:01]} 24. Nc3 {[%emt 0:00:48]} Rfd8 {[%emt 0:00:52]} 25. g5 {[%emt 0:02:05]} d4 {[%emt 0:02:26]} 26. Ne2 {[%emt 0:00:16]} Be4 {[%emt 0:01:39]} 27. Nxd4 {[%emt 0:01:03]} Rd5 {[%emt 0:02:49]} 28. Rfe1 {[%emt 0:00:31]} Bxf5 {[%emt 0:00:49]} 29. Nxf5 {[%emt 0:01:11]} Rxf5 {[%emt 0:00:04]} 30. Rxe7 {[%emt 0:00:11]} Rxf4 {[%emt 0:00:01]} 31. Ra7 Rg4 {[%emt 0:01:02]} 32. Rxa6 {[%emt 0:00:39]} Rxg5 {[%emt 0:00:01]} 33. Rc6 {[%emt 0:00:13]} Re8 {[%emt 0:00:18]} 34. Rc3 {[%emt 0:00:16]} Rg2 {[%emt 0:00:20]} 35. Re3 {[%emt 0:00:13]} Rf8 {[%emt 0:00:17]} 36. h3 {[%emt 0:00:05] [#]} f5 $1 {[%emt 0:00:17]} 37. Rf3 {[%emt 0:00:12]} f4 {[%emt 0:00:19]} 38. Kc1 {[%emt 0:00:43]} g5 {[%emt 0:00:51]} 39. Rd5 {[%emt 0:00:28]} Kg7 {[%emt 0:02:57]} 40. Rxb5 {[%emt 0:00:00]} h5 {[%emt 0:00:00]} 41. a4 $2 {[%emt 0:01:22]} (41. Rf1 $17) 41... g4 {[%emt 0:02:35]} 42. hxg4 {[%emt 0:00:15]} hxg4 {[%emt 0:00:20]} 43. Rd3 $2 {[%emt 0:06:02]} (43. Rf1 f3 44. a5) 43... f3 {[%emt 0:02:24]} 44. Rg5+ {[%emt 0:02:09]} Kh6 {[%emt 0:07:24]} 45. Rdd5 {[%emt 0:00:39]} Rf7 {[%emt 0:00:59]} (45... Rh2 $142 46. Rgf5 Rxf5 47. Rxf5 f2) 46. Rh5+ $2 {[%emt 0:01:41]} (46. Rgf5 Rxf5 47. Rxf5) 46... Kg7 {[%emt 0:01:03]} 47. Rh1 {[%emt 0:00:19]} f2 {[%emt 0:00:31]} 48. Rdd1 {[%emt 0:00:24]} g3 {[%emt 0:01:04]} 49. a5 {[%emt 0:00:18]} Rh2 {[%emt 0:00:15]} 50. Rxh2 {[%emt 0:00:05]} gxh2 {[%emt 0:00:04]} 51. Rf1 {[%emt 0:00:05]} Re7 {[%emt 0:01:06]} 52. Kd2 {[%emt 0:00:55] [#]} Re1 $1 {[%emt 0:00:08]} 53. Rxf2 {[%emt 0:00:12]} h1=Q {[%emt 0:00:07]} 54. b4 {[%emt 0:00:26]} Rd1+ {[%emt 0:00:04]} 55. Ke2 {[%emt 0:00:06]} Qe1+ {[%emt 0:00:07]} 56. Kf3 {[%emt 0:00:04]} Qxb4 {[%emt 0:00:04]} 57. Rg2+ {[%emt 0:00:05]} Kf6 {[%emt 0:00:03]} 58. Rg4 {[%emt 0:00:19]} Qc3+ {[%emt 0:00:29]} 0-1

[Event "FIDE WCCC G12 2018"]
[Site "Santiago de Compostela"]
[Date "2018.11.09"]
[Round "5"]
[White "Oz, Irem Ezra"]
[Black "Nurmanova, Alua"]
[Result "1-0"]
[ECO "B90"]
[WhiteElo "1564"]
[BlackElo "1780"]
[Annotator "NA RC"]
[PlyCount "97"]
[EventDate "2018.11.04"]
[EventType "swiss"]
[EventCountry "ESP"]
[SourceTitle "playchess.com"]
[Source "ChessBase"]
[SourceQuality "1"]
[TimeControl "40/5400+30:1800+30"]

1. e4 {[%emt 0:00:00]} c5 {[%emt 0:00:00]} 2. Nf3 {[%emt 0:00:08]} d6 {[%emt 0:00:00]} 3. d4 {[%emt 0:00:33]} cxd4 {[%emt 0:00:00]} 4. Nxd4 {[%emt 0:00:27]} Nf6 {[%emt 0:00:14]} 5. Nc3 {[%emt 0:00:59]} a6 {[%emt 0:00:12]} 6. h3 {[%emt 0:00:38]} b5 {[%emt 0:07:55]} 7. a3 {[%emt 0:09:34]} Bb7 {[%emt 0:02:58]} 8. Bd3 {[%emt 0:01:12]} Nbd7 {[%emt 0:04:07]} 9. Bg5 {[%emt 0:05:49]} e6 {[%emt 0:12:55]} 10. O-O {[%emt 0:07:35]} Be7 {[%emt 0:01:16]} 11. Kh1 {[%emt 0:03:12]} O-O {[%emt 0:03:48]} 12. Nb3 {[%emt 0:04:30]} Rc8 {[%emt 0:06:49]} 13. f4 {[%emt 0:03:06]} Re8 {[%emt 0:08:20]} 14. Qe2 {[%emt 0:02:53]} Qc7 {[%emt 0:02:36]} 15. Rad1 {[%emt 0:11:42]} h6 {[%emt 0:15:30]} 16. Bh4 {[%emt 0:01:18]} g6 {[%emt 0:06:24]} 17. Bg3 {[%emt 0:06:06]} Bf8 {[%emt 0:09:13]} 18. Qd2 {[%emt 0:03:04]} Nc5 {[%emt 0:05:00]} 19. Nxc5 {[%emt 0:01:48]} dxc5 {[%emt 0:00:29]} 20. Qe3 {[%emt 0:11:57]} c4 {[%emt 0:01:57]} 21. f5 {[%emt 0:06:36]} Qc5 {[%emt 0:01:46]} 22. Qxc5 {[%emt 0:01:45]} Bxc5 {[%emt 0:00:39]} 23. fxg6 {[%emt 0:01:37]} Kg7 {[%emt 0:06:48]} 24. gxf7 {[%emt 0:02:02]} Rf8 {[%emt 0:00:24]} 25. Be5 {[%emt 0:03:04]} Rxf7 {[%emt 0:00:46]} 26. Be2 {[%emt 0:01:31]} Bc6 {[%emt 0:01:12]} 27. Bh5 {[%emt 0:01:49]} Rff8 {[%emt 0:00:05]} 28. Rf3 {[%emt 0:00:30]} Be7 {[%emt 0:00:25]} 29. Rg3+ {[%emt 0:00:55]} Kh7 {[%emt 0:00:23]} 30. Bg6+ {[%emt 0:00:28]} Kh8 {[%emt 0:00:17]} 31. Rf1 {[%emt 0:01:14]} Rcd8 {[%emt 0:01:11]} 32. Rgf3 {[%emt 0:00:36]} Kg7 {[%emt 0:00:07]} 33. Bh5 {[%emt 0:00:08]} Rd2 {[%emt 0:00:45]} 34. Rg3+ {[%emt 0:01:31]} Kh7 {[%emt 0:00:17]} 35. Bg6+ {[%emt 0:00:32]} Kh8 {[%emt 0:00:10]} 36. Bh5 {[%emt 0:01:05]} Kh7 {[%emt 0:00:25]} 37. Bd1 {[%emt 0:00:45]} a5 {[%emt 0:00:34]} 38. Bf4 {[%emt 0:00:26]} Rd7 {[%emt 0:00:00]} 39. e5 {[%emt 0:00:00]} Rxd1 {[%emt 0:00:00]} 40. Nxd1 {[%emt 0:00:00]} Nh5 {[%emt 0:00:00]} 41. Ne3 {[%emt 0:10:12]} Rxf4 {[%emt 0:15:10]} 42. Rxf4 {[%emt 0:00:36]} Nxf4 {[%emt 0:00:10]} 43. Ng4 {[%emt 0:03:41]} Bg5 {[%emt 0:05:34]} 44. Nf6+ {[%emt 0:00:51]} Bxf6 {[%emt 0:00:15]} 45. exf6 {[%emt 0:00:06]} Nh5 {[%emt 0:00:14]} 46. Rg7+ {[%emt 0:01:22]} Kh8 {[%emt 0:00:29]} 47. Rc7 {[%emt 0:00:11]} Bd5 {[%emt 0:00:43]} 48. Rc8+ {[%emt 0:00:13]} Kh7 49. f7 1-0

[Event "FIDE WCCC G12 2018"]
[Site "Santiago de Compostela"]
[Date "2018.11.09"]
[Round "5"]
[White "Mamardashvili, Ana"]
[Black "Dakic, Marta"]
[Result "0-1"]
[ECO "C41"]
[WhiteElo "1527"]
[BlackElo "1756"]
[Annotator "NA RC"]
[PlyCount "86"]
[EventDate "2018.11.04"]
[EventType "swiss"]
[EventCountry "ESP"]
[SourceTitle "playchess.com"]
[Source "ChessBase"]
[SourceQuality "1"]
[TimeControl "40/5400+30:1800+30"]

1. e4 {[%emt 0:00:00]} e5 {[%emt 0:00:00]} 2. Nf3 {[%emt 0:00:00]} d6 {[%emt 0:00:00]} 3. d4 {[%emt 0:00:00]} exd4 {[%emt 0:00:01]} 4. Nxd4 {[%emt 0:00:10]} Nf6 {[%emt 0:00:15]} 5. Nc3 {[%emt 0:00:17]} Be7 {[%emt 0:00:29]} 6. Be2 {[%emt 0:01:35]} O-O {[%emt 0:00:42]} 7. O-O {[%emt 0:00:30]} Re8 {[%emt 0:01:26]} 8. f4 {[%emt 0:02:48]} Bf8 {[%emt 0:01:32]} 9. Bf3 {[%emt 0:01:35]} Nbd7 {[%emt 0:03:29]} 10. Re1 {[%emt 0:04:02]} g6 {[%emt 0:05:46]} 11. Nde2 {[%emt 0:08:42]} c6 {[%emt 0:11:16]} 12. Ng3 {[%emt 0:05:53]} Qc7 {[%emt 0:02:56]} 13. Be3 {[%emt 0:06:33]} a6 {[%emt 0:04:05]} 14. a4 {[%emt 0:09:03]} b6 {[%emt 0:05:10]} 15. Qd2 {[%emt 0:05:19]} Bb7 {[%emt 0:02:02]} 16. Rad1 {[%emt 0:08:08]} b5 {[%emt 0:11:58]} 17. axb5 {[%emt 0:00:15]} axb5 {[%emt 0:00:05]} 18. Qf2 {[%emt 0:07:54]} b4 {[%emt 0:02:32]} 19. Nb1 {[%emt 0:00:15]} Ra2 {[%emt 0:05:03]} 20. c3 {[%emt 0:06:10]} c5 {[%emt 0:02:06]} 21. cxb4 {[%emt 0:01:16]} cxb4 {[%emt 0:00:15]} 22. Bd4 {[%emt 0:02:49]} Rea8 {[%emt 0:06:09]} 23. Rc1 {[%emt 0:03:22]} Qa5 {[%emt 0:03:43]} 24. Nd2 {[%emt 0:01:10]} Qd8 {[%emt 0:05:03]} 25. Nc4 {[%emt 0:05:15]} R8a6 {[%emt 0:05:51]} 26. e5 {[%emt 0:04:00]} Bxf3 {[%emt 0:00:23]} 27. Qxf3 {[%emt 0:00:09]} Ne8 {[%emt 0:04:10]} 28. f5 {[%emt 0:03:08]} dxe5 {[%emt 0:00:24]} 29. Nxe5 {[%emt 0:01:03]} Nxe5 {[%emt 0:00:56]} 30. Bxe5 {[%emt 0:00:08]} Bg7 {[%emt 0:03:09]} 31. fxg6 {[%emt 0:03:58]} hxg6 {[%emt 0:00:13]} 32. Bxg7 {[%emt 0:00:41]} Nxg7 33. Rf1 {[%emt 0:01:58]} Ra7 {[%emt 0:04:59]} 34. Qb3 {[%emt 0:01:15]} Qd4+ {[%emt 0:00:33]} 35. Kh1 {[%emt 0:00:44]} Rxb2 {[%emt 0:01:06]} 36. Qf3 {[%emt 0:00:57]} Qd7 {[%emt 0:02:07]} 37. Rcd1 {[%emt 0:01:00]} Qc7 {[%emt 0:01:07]} 38. Qf6 {[%emt 0:02:07]} Qc2 {[%emt 0:01:49]} 39. Rd8+ {[%emt 0:00:57]} Kh7 {[%emt 0:00:04]} 40. Qh4+ {[%emt 0:00:00]} Nh5 {[%emt 0:00:00]} 41. Qh3 {[%emt 0:07:27]} Rb1 {[%emt 0:02:44]} 42. Rc8 {[%emt 0:03:06]} Raa1 {[%emt 0:01:42]} 43. Kg1 {[%emt 0:03:37]} Qe2 {[%emt 0:01:00]} 0-1

[Event "FIDE WCCC G12 2018"]
[Site "Santiago de Compostela"]
[Date "2018.11.09"]
[Round "5"]
[White "Schiopu, Oana-Magdalena"]
[Black "Boramanikar Tanisha S"]
[Result "0-1"]
[ECO "B23"]
[WhiteElo "1526"]
[BlackElo "1716"]
[Annotator "NA RC"]
[PlyCount "49"]
[EventDate "2018.11.04"]
[EventType "swiss"]
[EventCountry "ESP"]
[SourceTitle "playchess.com"]
[Source "ChessBase"]
[SourceQuality "1"]
[TimeControl "40/5400+30:1800+30"]

1. e4 {[%emt 0:00:00]} c5 {[%emt 0:00:00]} 2. Nc3 {[%emt 0:00:00]} Nc6 {[%emt 0:00:14]} 3. f4 {[%emt 0:00:50]} g6 {[%emt 0:01:01]} 4. Nf3 {[%emt 0:01:16]} Bg7 {[%emt 0:01:03]} 5. Bb5 {[%emt 0:00:43]} e6 {[%emt 0:01:20]} 6. Bxc6 {[%emt 0:04:18]} bxc6 {[%emt 0:00:45]} 7. O-O {[%emt 0:01:30]} Ne7 {[%emt 0:01:38]} 8. Qe1 {[%emt 0:02:49]} Ba6 {[%emt 0:05:37]} 9. d3 {[%emt 0:02:00]} Rb8 {[%emt 0:13:36]} 10. Kh1 {[%emt 0:24:52]} Qa5 {[%emt 0:07:14]} 11. a4 {[%emt 0:21:27]} Qc7 {[%emt 0:14:04]} 12. e5 {[%emt 0:10:18]} c4 {[%emt 0:05:17]} 13. dxc4 {[%emt 0:18:03]} Bxc4 {[%emt 0:00:32]} 14. Rf2 {[%emt 0:00:05]} O-O {[%emt 0:08:22]} 15. b3 {[%emt 0:01:38]} Bd5 {[%emt 0:05:26]} 16. Ba3 {[%emt 0:01:05]} c5 {[%emt 0:01:32]} 17. Rd1 {[%emt 0:02:12]} Qc6 {[%emt 0:08:39]} 18. Ng5 {[%emt 0:01:59]} f6 {[%emt 0:04:20]} 19. exf6 {[%emt 0:01:10]} Bxf6 {[%emt 0:01:13]} 20. Nce4 {[%emt 0:00:25]} Bxg5 {[%emt 0:12:19]} 21. Nxg5 {[%emt 0:00:21]} Qc7 {[%emt 0:01:35]} 22. Bb2 {[%emt 0:00:29]} Nf5 {[%emt 0:04:16]} 23. Qc3 {[%emt 0:00:13]} e5 {[%emt 0:00:55]} 24. fxe5 {[%emt 0:00:27]} Nd4 {[%emt 0:00:25]} 25. Rxf8+ {Ne6 Rf2} 0-1